bitfinex/quotes_ETHUSD_20251017
["timestamp","ask_amount","ask_price","bid_price","bid_amount"]
[1760666742434,40.86927366,3926.6,3925.6,0.5623]
[1760666742621,41.37402863,3926.6,3925.6,0.5623]
[1760666742944,41.37402863,3926.6,3925.3,0.002]
[1760666742945,3.230592,3926.2,3926.1,1e-08]
[1760666743144,50.76396153,3926.2,3926.1,1e-08]
[1760666743443,9.173188,3926.2,3926.1,0.64500001]
[1760666743668,7.87677784,3926.2,3926.1,0.64500001]
[1760666743956,7.02577784,3926.2,3926.1,0.64500001]
[1760666744118,9.60577784,3926.2,3926.1,0.64500001]
[1760666744321,15.1571503,3926.2,3926.1,0.64500001]
[1760666744629,9.4872083,3926.2,3926.1,0.64500001]
[1760666744834,16.4872083,3926.2,3926.1,0.64500001]
[1760666745155,16.4372083,3926.2,3926.1,0.64500001]
[1760666745343,17.9732083,3926.2,3926.1,0.64500001]
[1760666746054,16.4372083,3926.2,3926.1,0.64500001]
[1760666746431,22.5092083,3926.2,3926.1,0.64500001]
[1760666746936,19.9732083,3926.2,3926.1,0.64500001]
[1760666747333,19.4372083,3926.2,3926.1,0.64500001]
[1760666747524,16.4372083,3926.2,3926.1,0.64500001]
[1760666748344,11.8407053,3926.2,3926.1,0.64500001]
[1760666748542,16.9481853,3926.2,3926.1,0.64500001]
[1760666748760,16.4121853,3926.2,3926.1,0.64500001]
[1760666748941,11.8407053,3926.2,3926.1,0.64500001]
[1760666749456,17.9886003,3926.2,3926.1,0.64500001]
[1760666750639,31.23893638,3926.2,3926.1,1e-08]
[1760666750829,29.37843638,3926.2,3926.1,1e-08]
[1760666751026,25.70869138,3926.2,3926.1,0.64500001]
[1760666751461,17.2217513,3926.2,3926.1,0.64500001]
[1760666751752,19.5340693,3926.2,3926.1,1e-08]
[1760666751956,21.6950693,3926.2,3926.1,1e-08]
[1760666752156,22.3286693,3926.2,3926.1,1e-08]
[1760666752469,22.43087137,3926.2,3926.1,1e-08]
[1760666752643,22.43087137,3926.2,3925.3,0.002]
[1760666752644,2.59725151,3925.8,3925.3,0.002]
[1760666752968,44.15645929,3925.8,3925.3,0.002]
[1760666753145,33.23111108,3925.4,3925.3,0.002]
[1760666753344,33.23111108,3925.4,3923.3,0.4436]
[1760666753345,2.59803037,3924.6,3923.3,0.4436]
[1760666753551,48.80317215,3924.6,3923.3,0.4436]
[1760666753751,50.18496515,3924.6,3923.3,0.4436]
[1760666753965,46.88484115,3924.6,3923.6,0.4436]
[1760666754273,19.35524966,3924.6,3924.2,0.2]
[1760666754569,15.2552832,3924.6,3924.2,0.2]
[1760666754767,22.7673772,3924.6,3924.2,0.2]
[1760666754973,21.1492172,3924.6,3924.2,0.2]
[1760666755336,17.24450383,3924.6,3924.2,0.2]
[1760666755573,15.38144983,3924.6,3924.5,0.4456]
[1760666755767,17.91300255,3924.6,3924.5,0.4456]
[1760666756073,17.91300255,3924.6,3924.5,0.002]
[1760666756246,20.46103292,3924.6,3924.5,0.002]
[1760666756859,21.84751192,3924.6,3924.5,0.002]
[1760666757047,17.76348155,3924.6,3924.5,0.002]
[1760666757373,17.34570966,3924.6,3924.5,0.002]
[1760666757671,19.89374003,3924.6,3924.5,0.002]
[1760666757969,26.04255403,3924.6,3924.5,0.002]
[1760666758169,25.57855403,3924.6,3924.5,0.002]
[1760666758790,30.80293503,3924.6,3924.5,0.002]
[1760666758961,30.22708703,3924.6,3924.5,0.002]
[1760666759895,18.56077766,3924.6,3924.5,0.002]
[1760666760086,18.56077766,3924.6,3924.5,0.4456]
[1760666760291,21.10880803,3924.6,3924.5,0.4456]
[1760666760585,21.10880803,3924.6,3924.5,0.002]
[1760666760785,28.61523003,3924.6,3924.5,0.002]
[1760666761084,21.65149003,3924.6,3924.5,0.002]
[1760666761986,34.69166203,3924.6,3924.5,0.002]
[1760666762675,27.38323203,3924.6,3924.5,0.002]
[1760666762878,23.83373803,3924.6,3924.5,0.002]
[1760666763185,23.38580203,3924.6,3924.5,0.002]
[1760666763387,22.68102703,3924.6,3924.5,0.002]
[1760666764088,16.79180566,3924.6,3924.5,0.475]
[1760666764456,16.79180566,3924.6,3924.5,0.002]
[1760666764657,14.32374255,3924.6,3924.5,0.002]
[1760666764857,14.32374255,3924.6,3924.5,0.475]
[1760666764858,10.43275926,3924.6,3924.5,0.475]
[1760666765163,13.74175926,3924.6,3924.5,0.002]
[1760666765381,27.37939226,3924.6,3924.5,0.002]
[1760666765582,29.87954852,3924.6,3924.5,0.002]
[1760666765781,21.29687152,3924.6,3924.5,0.002]
[1760666766404,13.70872726,3924.6,3924.5,0.475]
[1760666767388,13.70872726,3924.6,3924.5,0.002]
[1760666767389,17.77310826,3924.6,3924.5,0.002]
[1760666767590,16.69908626,3924.6,3924.5,0.475]
[1760666767800,16.69908626,3924.6,3924.5,0.002]
[1760666767801,12.24711663,3924.6,3924.5,0.002]
[1760666768301,25.18639863,3924.6,3924.5,0.002]
[1760666768506,27.68655489,3924.6,3924.5,0.002]
[1760666769388,38.80750789,3924.6,3924.5,0.002]
[1760666769693,34.92184889,3924.6,3924.5,0.002]
[1760666769914,33.69964089,3924.6,3924.5,0.002]
[1760666770499,38.47186489,3924.6,3924.5,0.002]
[1760666771396,39.03246189,3924.6,3924.5,0.002]
[1760666771968,19.21956689,3924.6,3924.5,0.002]
[1760666772190,18.13885689,3924.6,3924.5,0.002]
[1760666772403,28.09490789,3924.6,3924.5,0.002]
[1760666772593,14.90362789,3924.6,3924.5,0.002]
[1760666772904,11.43681352,3924.6,3924.5,0.002]
[1760666773109,8.93665726,3924.6,3924.5,0.002]
[1760666773507,12.87654426,3924.6,3924.5,0.002]
[1760666773883,6.70972726,3924.6,3924.5,0.475]
[1760666774078,2.98172726,3924.6,3924.5,0.475]
[1760666774885,4.70972726,3924.6,3924.5,0.475]
[1760666776006,4.70972726,3924.6,3924.5,0.002]
[1760666776177,4.70972726,3924.6,3924.5,0.475]
[1760666776585,2.98172726,3924.6,3924.5,0.77732611]
[1760666776915,2.98172726,3924.6,3924.5,3.02309529]
[1760666777438,2.98172726,3924.6,3924.5,0.002]
[1760666777611,4.70972726,3924.6,3924.5,0.002]
[1760666777977,16.20556663,3924.6,3924.5,0.002]
[1760666778182,16.79634563,3924.6,3924.5,0.002]
[1760666778411,18.47598019,3924.6,3924.5,0.002]
[1760666779130,31.86361719,3924.6,3924.5,0.002]
[1760666779339,26.61189819,3924.6,3924.5,0.002]
[1760666779629,22.04731819,3924.6,3924.5,0.002]
[1760666780227,40.08689219,3924.6,3924.5,0.002]
[1760666782136,20.76495019,3924.6,3924.5,0.002]
[1760666782307,23.98155019,3924.6,3924.5,0.002]
[1760666783129,28.27371219,3924.6,3924.5,0.002]
[1760666783332,27.01556919,3924.6,3924.5,0.002]
[1760666783925,26.96556919,3924.6,3924.5,0.002]
[1760666784135,9.45959219,3924.6,3924.5,0.002]
[1760666784325,29.15850019,3924.6,3924.5,0.002]
[1760666784528,27.56755719,3924.6,3924.5,0.002]
[1760666784835,6.40745582,3924.6,3924.5,0.002]
[1760666785047,5.43480326,3924.6,3924.5,0.002]
[1760666785338,3.62626226,3924.6,3924.5,0.4567]
[1760666785525,7.04515826,3924.6,3924.5,0.4567]
[1760666785925,0.39972726,3924.6,3924.5,0.4567]
[1760666786460,1.41572726,3924.6,3924.5,0.4567]
[1760666786802,1.41572726,3924.6,3924.5,3.00479529]
[1760666787008,1.41572726,3924.6,3924.5,3.56010186]
[1760666788044,1.41572726,3924.6,3924.5,4.19370186]
[1760666788338,1.016,3924.6,3924.5,4.19370186]
[1760666788759,0.40060402,3925.3,3925.2,2.54764088]
[1760666789052,2.98360402,3925.3,3924.5,0.4567]
[1760666789257,2.567306,3925.1,3924.5,0.002]
[1760666791031,0.2983604,3925.2,3924.5,0.002]
[1760666791530,2.98360402,3925.3,3924.6,0.4547]
[1760666791919,2.98360402,3925.3,3924.5,0.002]
[1760666791920,0.1272,3924.6,3924.5,0.002]
[1760666792124,2.7102,3924.6,3924.5,0.002]
[1760666792558,3.10983457,3924.6,3924.5,0.002]
[1760666794754,2.98263457,3924.6,3924.5,0.4567]
[1760666795259,2.98263457,3924.6,3924.5,0.002]
[1760666795755,2.98263457,3924.6,3924.5,3.00479529]
[1760666796767,2.98263457,3924.6,3924.5,0.4567]
[1760666796963,2.98263457,3924.6,3924.5,0.002]
[1760666797342,2.98263457,3924.6,3924.5,3.00479529]
[1760666797658,2.98263457,3924.6,3924.5,0.002]
[1760666798051,2.98263457,3924.6,3924.5,3.00479529]
[1760666798637,2.98263457,3924.6,3924.5,0.4567]
[1760666798961,2.98263457,3924.6,3924.5,0.002]
[1760666799863,3.28089803,3924.6,3924.5,0.002]
[1760666801265,2.98263457,3924.6,3924.5,0.002]
[1760666801759,2.98263457,3924.6,3924.5,0.4567]
[1760666802330,2.98263457,3924.6,3924.5,3.00479529]
[1760666803535,0.39963457,3924.6,3924.5,3.00479529]
[1760666803756,2.98163457,3924.6,3924.5,3.00479529]
[1760666804393,2.98163457,3924.6,3924.5,0.002]
[1760666804705,3.27979803,3924.6,3924.5,0.002]
[1760666805001,2.98163457,3924.6,3924.5,0.002]
[1760666805957,3.45283457,3924.6,3924.5,0.002]
[1760666806258,16.75547157,3924.6,3924.5,0.002]
[1760666806473,19.30350194,3924.6,3924.5,0.002]
[1760666806874,5.18083457,3924.6,3924.5,0.002]
[1760666807078,4.70963457,3924.6,3924.5,0.002]
[1760666807280,5.18059803,3924.6,3924.5,0.002]
[1760666807965,5.65179803,3924.6,3924.5,0.002]
[1760666808375,5.18059803,3924.6,3924.5,0.002]
[1760666809208,2.59859803,3924.6,3924.5,0.002]
[1760666809501,5.18083457,3924.6,3924.5,0.002]
[1760666809699,4.70963457,3924.6,3924.5,0.002]
[1760666810012,5.18083457,3924.6,3924.5,0.002]
[1760666810404,4.70963457,3924.6,3924.5,0.002]
[1760666810793,2.98163457,3924.6,3924.5,0.002]
[1760666812293,2.98163457,3924.6,3924.5,0.443]
[1760666812695,2.98163457,3924.6,3924.5,2.99109529]
[1760666815282,0.39963457,3924.6,3924.5,2.99109529]
[1760666815599,0.39963457,3924.6,3924.5,2.55009529]
[1760666815907,0.39963457,3924.6,3924.5,0.002]
[1760666815908,2.98163457,3924.6,3924.5,0.002]
[1760666816115,3.42023457,3924.6,3924.5,0.002]
[1760666816282,3.76225803,3924.6,3924.5,0.002]
[1760666816978,6.3102884,3924.6,3924.5,0.002]
[1760666817222,8.38578603,3924.6,3924.5,0.002]
[1760666817729,10.9338164,3924.6,3924.5,0.002]
[1760666819123,11.4490234,3924.6,3924.5,0.002]
[1760666819294,7.51058403,3924.6,3924.5,0.002]
[1760666820424,8.51515203,3924.6,3924.5,0.002]
[1760666820622,21.3328274,3924.6,3924.5,0.002]
[1760666820921,16.9777424,3924.6,3924.5,0.002]
[1760666821286,17.6113424,3924.6,3924.5,0.002]
[1760666821701,38.6718884,3924.6,3924.5,0.002]
[1760666822022,30.6227904,3924.6,3924.5,0.002]
[1760666822556,27.4395444,3924.6,3924.5,0.002]
[1760666822686,38.6718884,3924.6,3924.5,0.002]
[1760666822890,37.1816164,3924.6,3924.5,0.002]
[1760666823086,27.6310564,3924.6,3924.5,0.002]
[1760666823325,27.95245194,3924.6,3924.5,0.002]
[1760666823817,38.99328394,3924.6,3924.5,0.002]
[1760666824322,33.6065214,3924.6,3924.5,0.002]
[1760666824823,39.19088335,3924.6,3924.5,0.002]
[1760666825013,33.90562235,3924.6,3924.5,0.002]
[1760666825720,39.19088335,3924.6,3924.5,0.002]
[1760666825912,37.20734335,3924.6,3924.5,0.002]
[1760666826224,36.50827535,3924.6,3924.5,0.002]
[1760666826426,34.91860535,3924.6,3924.5,0.002]
[1760666826791,15.0972794,3924.6,3924.5,0.002]
[1760666826995,9.5591684,3924.6,3924.5,0.002]
[1760666827229,11.7237684,3924.6,3924.5,0.002]
[1760666827796,36.0796884,3924.6,3924.5,0.002]
[1760666828824,21.3246434,3924.6,3924.5,0.002]
[1760666829730,8.0862884,3924.6,3924.5,0.002]
[1760666829931,18.1064194,3924.6,3924.5,0.002]
[1760666830131,17.7405554,3924.6,3924.5,0.002]
[1760666830298,17.2433234,3924.6,3924.5,0.002]
[1760666830502,16.2743304,3924.6,3924.5,0.002]
[1760666830715,16.2193734,3924.6,3924.5,0.002]
[1760666831031,15.7672504,3924.6,3924.5,0.002]
[1760666831722,7.6496884,3924.6,3924.5,0.002]
[1760666831924,12.8571624,3924.6,3924.5,0.002]
[1760666832116,9.2817164,3924.6,3924.5,0.002]
[1760666832307,10.3845214,3924.6,3924.5,0.002]
[1760666832726,30.9880824,3924.6,3924.5,0.002]
[1760666832939,30.3823864,3924.6,3924.5,0.002]
[1760666833142,26.8307424,3924.6,3924.5,0.002]
[1760666833436,23.2397034,3924.6,3924.5,0.002]
[1760666833735,13.1558474,3924.6,3924.5,0.002]
[1760666833918,10.8502704,3924.6,3924.5,0.002]
[1760666834122,5.10165803,3924.6,3924.5,0.002]
[1760666834647,5.05165803,3924.6,3924.5,0.002]
[1760666834807,11.3527854,3924.6,3924.5,0.002]
[1760666835229,11.2628254,3924.6,3924.5,0.002]
[1760666835742,12.3830254,3924.6,3924.5,0.002]
[1760666836241,38.7198884,3924.6,3924.5,0.002]
[1760666836540,39.04128394,3924.6,3924.5,0.002]
[1760666836906,33.70615294,3924.6,3924.5,0.002]
[1760666837321,37.14798094,3924.6,3924.5,0.002]
[1760666837840,30.47370994,3924.6,3924.5,0.002]
[1760666838008,30.52370994,3924.6,3924.5,0.002]
[1760666838214,39.04128394,3924.6,3924.5,0.002]
[1760666840749,46.04128394,3924.6,3924.5,0.002]
[1760666841046,45.82600494,3924.6,3924.5,0.002]
[1760666841408,46.04128394,3924.6,3924.5,0.002]
[1760666843551,26.5492904,3924.6,3924.5,0.002]
[1760666843722,32.59829009,3924.2,3924.1,0.002]
[1760666843913,48.21303711,3923.8,3923.7,0.002]
[1760666844110,14.854828,3922.6,3922.3,0.05]
[1760666844351,5.18132952,3922.6,3922.3,0.05]
[1760666844644,2.632,3922.6,3922.3,0.05]
[1760666844821,9.05180852,3922.6,3922.3,0.05]
[1760666845142,10.22500449,3922.6,3922.3,0.05]
[1760666845344,17.57639649,3922.6,3922.3,0.05]
[1760666845555,9.18476549,3922.6,3922.3,0.05]
[1760666845757,3.03186601,3922.6,3922.5,0.4751]
[1760666846167,10.03186601,3922.6,3922.5,0.4751]
[1760666846461,9.98186601,3922.6,3922.5,0.4751]
[1760666847060,29.16745353,3922.6,3922.5,0.002]
[1760666847216,17.97780127,3922.6,3922.5,0.002]
[1760666847714,20.52713079,3922.6,3922.5,0.002]
[1760666848114,28.12765479,3922.6,3922.5,0.002]
[1760666848354,27.72778878,3922.6,3922.5,0.002]
[1760666848817,17.22805326,3922.6,3922.5,0.002]
[1760666849017,16.97933226,3922.6,3922.5,0.002]
[1760666849216,28.55141126,3922.6,3922.5,0.002]
[1760666849448,31.10074078,3922.6,3922.5,0.002]
[1760666849848,21.31617178,3922.6,3922.5,0.002]
[1760666850153,39.51732278,3922.6,3922.5,0.002]
[1760666850650,29.48362278,3922.6,3922.5,0.002]
[1760666851044,25.85509078,3922.6,3922.5,0.002]
[1760666851356,35.48703688,3922.6,3922.5,0.002]
[1760666851650,27.8148664,3922.6,3922.5,0.002]
[1760666851839,17.48023088,3922.6,3922.5,0.002]
[1760666852036,11.70986762,3922.6,3922.5,0.4751]
[1760666852764,9.98186762,3922.6,3922.5,0.4751]
[1760666852918,9.98186762,3922.6,3922.5,3.02449451]
[1760666854554,2.98186762,3922.6,3922.5,3.02449451]
[1760666855421,2.98186762,3922.6,3922.5,0.4751]
[1760666855752,2.98186762,3922.6,3922.5,3.02449451]
[1760666857559,2.98186762,3922.6,3922.5,0.4751]
[1760666859864,2.98186762,3922.6,3922.5,0.002]
[1760666860360,3.28005438,3922.6,3922.5,0.002]
[1760666860550,12.00649538,3922.6,3922.5,0.002]
[1760666860740,5.08018676,3922.6,3922.5,0.002]
[1760666861065,4.60818676,3922.6,3922.5,0.002]
[1760666861388,15.10657528,3922.6,3922.5,0.002]
[1760666861532,14.14470928,3922.6,3922.5,0.002]
[1760666862359,7.62951628,3922.6,3922.5,0.002]
[1760666862546,10.72809228,3922.6,3922.5,0.002]
[1760666862750,8.68269376,3922.6,3922.5,0.002]
[1760666862937,11.23202328,3922.6,3922.5,0.002]
[1760666863463,16.79402628,3922.6,3922.5,0.002]
[1760666863671,17.19389271,3922.6,3922.5,0.002]
[1760666864475,23.28049471,3922.6,3922.5,0.002]
[1760666864850,24.23549025,3922.6,3922.5,0.002]
[1760666865041,22.98824471,3922.6,3922.5,0.002]
[1760666865241,18.65491971,3922.6,3922.5,0.002]
[1760666865571,17.50659471,3922.6,3922.5,0.002]
[1760666865960,8.31935571,3922.6,3922.5,0.002]
[1760666866279,10.90235571,3922.6,3922.5,0.002]
[1760666866483,12.61290871,3922.6,3922.5,0.002]
[1760666866770,12.11821671,3922.6,3922.5,0.002]
[1760666867161,11.64621671,3922.6,3922.5,0.002]
[1760666867472,31.83889471,3922.6,3922.5,0.002]
[1760666867675,15.11426471,3922.6,3922.5,0.002]
[1760666868067,9.57606771,3922.6,3922.5,0.002]
[1760666868474,6.22025019,3922.6,3922.5,0.002]
[1760666868673,9.61356243,3922.6,3922.5,0.002]
[1760666868844,7.83435543,3922.6,3922.5,0.002]
[1760666869047,4.71086643,3922.6,3922.5,0.002]
[1760666869654,9.84958443,3922.6,3922.5,0.002]
[1760666869978,9.449718,3922.6,3922.5,0.002]
[1760666870362,4.311,3922.6,3922.5,0.002]
[1760666871846,8.01754798,3922.6,3922.5,0.002]
[1760666872047,10.1216405,3922.6,3922.5,0.002]
[1760666872361,7.57231098,3922.6,3922.5,0.002]
[1760666872748,5.40189198,3922.6,3922.5,0.002]
[1760666872945,4.7108644,3922.6,3922.5,0.002]
[1760666873147,4.7108644,3922.6,3922.5,0.4536]
[1760666873575,4.7108644,3922.6,3922.5,0.002]
[1760666874484,7.0383494,3922.6,3922.5,0.002]
[1760666874680,4.7108644,3922.6,3922.5,0.4536]
[1760666875097,4.7108644,3922.6,3922.5,0.002]
[1760666876149,5.90584867,3922.6,3922.5,0.002]
[1760666876756,38.12905719,3922.6,3922.5,0.002]
[1760666876960,12.55014519,3922.6,3922.5,0.002]
[1760666877485,12.65243743,3922.6,3922.5,0.002]
[1760666877849,18.39596443,3922.6,3922.5,0.002]
[1760666878054,16.23821243,3922.6,3922.5,0.002]
[1760666878483,10.64513143,3922.6,3922.5,0.002]
[1760666878664,8.05531379,3922.6,3922.5,0.002]
[1760666878866,13.81857779,3922.6,3922.5,0.002]
[1760666879295,10.41566179,3922.6,3922.5,0.002]
[1760666879510,5.28333227,3922.6,3922.5,0.002]
[1760666879713,1.728,3922.6,3922.5,0.4325]
[1760666879892,6.86032952,3922.6,3922.5,0.002]
[1760666880091,4.311,3922.6,3922.5,0.002]
[1760666880615,4.311,3922.6,3922.5,0.4325]
[1760666880907,4.311,3922.6,3922.5,0.002]
[1760666881063,19.57320386,3922.6,3922.5,0.002]
[1760666881263,12.24634134,3922.6,3922.5,0.002]
[1760666881491,10.16078134,3922.6,3922.5,0.002]
[1760666881895,2.583,3922.6,3922.5,0.4325]
[1760666882264,2.583,3922.6,3922.5,0.002]
[1760666883395,2.9828339,3922.6,3922.5,0.002]
[1760666884636,5.53216342,3922.6,3922.5,0.002]
[1760666885079,10.18937542,3922.6,3922.5,0.002]
[1760666885278,9.05498993,3922.6,3922.5,0.002]
[1760666885479,8.77735141,3922.6,3922.5,0.002]
[1760666885705,11.32668093,3922.6,3922.5,0.002]
[1760666885869,14.09917593,3922.6,3922.5,0.002]
[1760666886202,6.50566041,3922.6,3922.5,0.002]
[1760666886363,4.7108339,3922.6,3922.5,0.002]
[1760666887168,0.3998339,3922.6,3922.5,0.4325]
[1760666887499,1.7758339,3922.6,3922.5,0.4325]
[1760666887701,1.7758339,3922.6,3922.5,2.98189451]
[1760666888097,1.7758339,3922.6,3922.5,3.53503269]
[1760666888468,1.7758339,3922.6,3922.5,0.98563818]
[1760666888671,1.7758339,3922.6,3922.5,0.4325]
[1760666888992,1.7758339,3922.6,3922.5,2.98189451]
[1760666889377,1.376,3922.6,3922.5,2.98189451]
[1760666891107,1.376,3922.6,3922.5,0.4325]
[1760666891311,1.376,3922.6,3922.5,2.98189451]
[1760666891605,1.376,3922.6,3922.5,3.53504051]
[1760666893305,1.376,3922.6,3922.5,0.985646]
[1760666894030,1.376,3922.6,3922.5,3.53504051]
[1760666897427,0.39980789,3922.8,3922.6,2.54928103]
[1760666897745,2.582,3922.7,3922.6,2.54928103]
[1760666898994,2.582,3922.7,3922.6,3.18321248]
[1760666899199,2.582,3922.7,3922.6,3.58821919]
[1760666899925,0.001,3923.7,3922.7,0.6336]
[1760666900104,0.001,3923.7,3923.6,2.74867978]
[1760666900441,0.5199,3923.6,3922.1,0.1693]
[1760666900628,1.728,3923.2,3922.1,2.71892435]
[1760666900827,2.582,3923.1,3922.1,2.71892435]
[1760666900993,3.0519,3923.1,3922.1,2.71892435]
[1760666901197,2.582,3923.1,3922.1,0.6088]
[1760666901428,2.582,3923.1,3922.4,0.4395]
[1760666901641,2.582,3923.1,3922.5,2.55133403]
[1760666901817,2.582,3923.1,3922.5,0.002]
[1760666901997,2.582,3923.1,3922.7,2.54925871]
[1760666902195,2.582,3923.1,3922.8,2.5491589]
[1760666902398,2.582,3923.1,3923.0,2.54906958]
[1760666902640,2.582,3923.1,3922.9,2.54910936]
[1760666902996,2.582,3923.1,3923.0,2.98856958]
[1760666903196,2.582,3923.1,3923.0,4.17594443]
[1760666903723,0.39976355,3923.2,3923.1,2.54900461]
[1760666903946,0.39976355,3923.2,3923.1,3.18850461]
[1760666904148,0.39976355,3923.2,3923.1,2.74900461]
[1760666904454,0.39976355,3923.2,3923.1,3.18850461]
[1760666904621,0.39976355,3923.2,3923.1,4.13591741]
[1760666904817,0.39976355,3923.2,3923.1,3.69641741]
[1760666905954,0.39976355,3923.2,3923.0,3.18266958]
[1760666905955,0.39976355,3923.2,3922.9,2.54912478]
[1760666906255,0.4577,3923.1,3922.5,2.55135382]
[1760666906435,0.4577,3923.1,3922.5,0.002]
[1760666906436,2.584,3923.0,3922.5,0.002]
[1760666907043,2.584,3923.0,3922.5,2.99089088]
[1760666907246,2.584,3923.0,3922.5,0.002]
[1760666907456,2.584,3923.0,3922.6,2.54932952]
[1760666908138,2.584,3923.0,3922.7,2.54923796]
[1760666909045,2.584,3923.0,3922.8,2.54914702]
[1760666909604,2.584,3923.0,3922.9,2.54913456]
[1760666910195,2.584,3923.0,3922.9,2.98863456]
[1760666912266,2.584,3923.0,3922.9,3.62223456]
[1760666912466,0.1272,3923.1,3923.0,3.18266958]
[1760666912672,0.1272,3923.1,3923.0,3.62216958]
[1760666912981,2.9827191,3923.5,3922.5,0.002]
[1760666913145,2.9827191,3923.5,3923.0,2.54906522]
[1760666913338,0.4577,3923.4,3922.8,2.5491387]
[1760666913791,0.4577,3923.3,3922.5,2.55134441]
[1760666913999,0.4577,3923.2,3922.6,2.54931895]
[1760666914196,0.4577,3923.2,3922.5,0.002]
[1760666914197,0.4577,3923.1,3922.5,0.002]
[1760666914491,5.43279082,3923.0,3922.5,0.002]
[1760666914689,5.83259622,3923.0,3922.5,0.002]
[1760666914990,0.4577,3922.9,3922.5,0.002]
[1760666915199,3.28347505,3923.0,3922.5,0.002]
[1760666915501,2.9828054,3923.0,3922.5,0.002]
[1760666915697,3.4405054,3923.0,3922.5,0.002]
[1760666915897,3.4405054,3923.0,3922.5,2.55138678]
[1760666916196,2.9828054,3923.0,3922.5,2.55138914]
[1760666916351,0.4577,3922.9,3922.5,0.002]
[1760666916995,0.4577,3922.9,3922.5,2.55138125]
[1760666917179,2.9828054,3923.0,3922.5,2.55138125]
[1760666917379,3.4405054,3923.0,3922.5,2.55138125]
[1760666917581,0.4577,3922.9,3922.5,0.002]
[1760666917764,0.80175054,3922.9,3922.5,0.002]
[1760666920065,2.52975054,3922.9,3922.5,0.002]
[1760666920291,12.45780852,3922.6,3922.5,0.002]
[1760666920460,6.86032952,3922.6,3922.5,0.002]
[1760666920868,11.03723346,3922.6,3922.5,0.002]
[1760666921092,11.64297782,3922.6,3922.5,0.002]
[1760666921267,6.16174836,3922.6,3922.5,0.002]
[1760666921451,4.7687,3922.6,3922.5,0.002]
[1760666922799,5.16855948,3922.6,3922.5,0.002]
[1760666923360,7.717889,3922.6,3922.5,0.002]
[1760666923559,5.16855948,3922.6,3922.5,0.002]
[1760666924480,20.558645,3922.6,3922.5,0.002]
[1760666924680,17.38049048,3922.6,3922.5,0.002]
[1760666924917,14.83116096,3922.6,3922.5,0.002]
[1760666925617,17.38049048,3922.6,3922.5,0.002]
[1760666925996,16.61448248,3922.6,3922.5,0.002]
[1760666926991,14.06515296,3922.6,3922.5,0.002]
[1760666927192,16.61448248,3922.6,3922.5,0.002]
[1760666927392,15.28431448,3922.6,3922.5,0.002]
[1760666928719,10.32459596,3922.6,3922.5,0.002]
[1760666929015,7.17984948,3922.6,3922.5,0.002]
[1760666929210,5.16855948,3922.6,3922.5,0.002]
[1760666929999,14.261388,3922.6,3922.5,0.002]
[1760666930216,19.953633,3922.6,3922.5,0.002]
[1760666930420,2.59958951,3922.2,3922.1,0.002]
[1760666930715,36.90958951,3922.2,3922.1,0.002]
[1760666930913,37.36728951,3922.2,3922.1,0.002]
[1760666931086,33.01307183,3922.2,3922.1,0.002]
[1760666931684,33.64667183,3922.2,3922.1,0.002]
[1760666931883,35.74687877,3922.2,3922.1,0.002]
[1760666932190,40.50104577,3922.2,3922.1,0.002]
[1760666933023,23.99530677,3922.2,3922.1,0.002]
[1760666933235,40.50104577,3922.2,3922.1,0.002]
[1760666933395,17.66316577,3922.2,3922.1,0.002]
[1760666934189,23.45787677,3922.2,3922.1,0.002]
[1760666935009,23.85783445,3922.2,3922.1,0.002]
[1760666935208,24.73291745,3922.2,3922.1,0.002]
[1760666935823,9.80970345,3922.2,3922.1,0.002]
[1760666936004,12.87703419,3922.2,3922.1,0.002]
[1760666936324,17.72692419,3922.2,3922.1,0.002]
[1760666937018,18.19962419,3922.2,3922.1,0.002]
[1760666937323,23.05538319,3922.2,3922.1,0.002]
[1760666938313,38.03798419,3922.2,3922.1,0.002]
[1760666938622,27.34120745,3922.2,3922.1,0.002]
[1760666939236,40.73550345,3922.2,3922.1,0.002]
[1760666939424,18.27591177,3922.2,3922.1,0.002]
[1760666939624,14.55596777,3922.2,3922.1,0.002]
[1760666940195,16.35479377,3922.2,3922.1,0.002]
[1760666940539,9.88244577,3922.2,3922.1,0.002]
[1760666940705,11.98189077,3922.2,3922.1,0.002]
[1760666940909,9.48173451,3922.2,3922.1,0.002]
[1760666941113,9.99553451,3922.2,3922.1,0.002]
[1760666941298,29.28690251,3922.2,3922.1,0.002]
[1760666941700,21.54186151,3922.2,3922.1,0.002]
[1760666941913,20.79906351,3922.2,3922.1,0.002]
[1760666942140,12.29388306,3922.2,3922.1,0.002]
[1760666942343,24.74790506,3922.2,3922.1,0.002]
[1760666942530,18.52167806,3922.2,3922.1,0.002]
[1760666942868,10.06709306,3922.2,3922.1,0.002]
[1760666943130,7.73223678,3922.2,3922.1,0.002]
[1760666943348,7.73223678,3922.2,3922.1,0.6089]
[1760666943349,2.98194727,3922.2,3922.1,0.6089]
[1760666944838,2.98294727,3922.2,3922.1,0.6089]
[1760666945908,2.98294727,3922.2,3922.1,3.15855452]
[1760666946143,2.98294727,3922.2,3922.1,3.72939306]
[1760666947650,0.39994727,3922.2,3922.1,4.36299306]
[1760666949143,2.584,3922.5,3922.4,2.54945951]
[1760666949466,2.584,3922.5,3922.4,2.98905951]
[1760666949614,2.584,3922.5,3922.4,0.4396]
[1760666949957,2.584,3922.5,3922.4,0.81253579]
[1760666950254,2.584,3922.5,3922.4,3.3619953]
[1760666955252,2.584,3922.5,3922.4,3.9955953]
[1760666955504,2.584,3922.5,3922.4,0.81253579]
[1760666955716,2.584,3922.5,3922.4,0.4396]